bitfinex/quotes_SOLUSD_20250922
["timestamp","ask_amount","ask_price","bid_price","bid_amount"]
[1758576725260,26.0,220.7,220.63,13.59559401]
[1758576725261,28.82604971,220.7,220.63,0.65]
[1758576726162,28.82604971,220.7,220.64,4.53226437]
[1758576727766,33.35714061,220.7,220.64,4.53226437]
[1758576728985,26.0,220.66,220.6,0.65]
[1758576729206,28.82604971,220.66,220.57,5.18358557]
[1758576729581,4.53206435,220.65,220.57,5.18358557]
[1758576729763,26.0,220.62,220.57,4.53358557]
[1758576730783,26.0,220.62,220.55,5.1839258]
[1758576731609,26.0,220.61,220.55,5.1839258]
[1758576731798,26.0,220.62,220.55,5.1839258]
[1758576732093,33.35884745,220.62,220.55,4.5339258]
[1758576733603,33.35884745,220.62,220.55,5.1839258]
[1758576733801,24.92365961,220.7,220.55,15.86922391]
[1758576733989,26.0,220.65,220.56,0.65]
[1758576734594,26.0,220.66,220.56,0.65]
[1758576734903,26.0,220.65,220.57,16.42164372]
[1758576735089,26.0,220.65,220.58,0.69]
[1758576735799,26.0,220.65,220.59,4.53329706]
[1758576736104,35.38,220.68,220.6,14.28559401]
[1758576736401,26.0,220.65,220.61,0.69]
[1758576736575,134.2,220.69,220.61,0.69]
[1758576737007,26.0,220.66,220.61,0.69]
[1758576737713,26.0,220.66,220.62,4.53268062]
[1758576737999,26.0,220.66,220.63,0.69]
[1758576738877,26.0,220.66,220.61,15.8651013]
[1758576739197,26.0,220.66,220.64,0.69]
[1758576740811,26.0,220.66,220.65,4.53206435]
[1758576745900,134.2,220.69,220.65,5.22206435]
[1758576746122,160.2,220.69,220.65,5.22206435]
[1758576746408,160.2,220.69,220.66,0.69]
[1758576747708,160.2,220.69,220.67,4.5316536]
[1758576749023,160.2,220.69,220.66,5.22185113]
[1758576749213,160.2,220.69,220.66,4.53185113]
[1758576749518,160.2,220.69,220.64,4.53207302]
[1758576749728,160.2,220.69,220.66,0.66]
[1758576750112,134.2,220.69,220.67,0.66]
[1758576750728,26.0,220.72,220.68,0.66]
[1758576751019,26.0,220.72,220.65,13.59559401]
[1758576751020,26.0,220.72,220.69,5.19124291]
[1758576752722,26.0,220.72,220.7,0.66]
[1758576752921,26.0,220.72,220.68,0.66]
[1758576753118,26.0,220.72,220.67,14.25559401]
[1758576753325,26.0,220.72,220.68,0.66]
[1758576753505,26.0,220.72,220.69,0.66]
[1758576754206,2.82604971,220.7,220.62,0.66]
[1758576754406,28.82604971,220.7,220.63,0.66]
[1758576755101,26.0,220.7,220.64,4.53226976]
[1758576755405,26.0,220.67,220.61,4.53271701]
[1758576756306,2.82604971,220.66,220.57,0.66]
[1758576757119,26.0,220.63,220.58,4.53350258]
[1758576757318,26.0,220.63,220.58,5.19350258]
[1758576758423,26.0,220.62,220.56,4.53372944]
[1758576758926,64.18604971,220.62,220.54,13.52339223]
[1758576759107,4.53288608,220.61,220.54,13.52339223]
[1758576759837,26.0,220.58,220.54,13.52339223]
[1758576761330,26.0,220.58,220.51,0.66]
[1758576761629,26.0,220.56,220.51,18.84059274]
[1758576761830,26.0,220.56,220.51,0.66]
[1758576762223,26.0,220.56,220.51,5.19485794]
[1758576763313,26.0,220.57,220.52,0.66]
[1758576763537,26.0,220.57,220.53,0.66]
[1758576763734,11.32927507,220.67,220.54,0.66]
[1758576763911,2.82604971,220.64,220.54,0.66]
[1758576764113,26.0,220.63,220.54,0.66]
[1758576764415,2.82604971,220.64,220.54,0.66]
[1758576764633,2.82604971,220.64,220.55,13.59559401]
[1758576764835,2.82604971,220.64,220.56,0.66]
[1758576765222,26.0,220.63,220.56,0.66]
[1758576765528,26.0,220.63,220.57,4.53370811]
[1758576765835,26.0,220.63,220.58,0.66]
[1758576766135,26.0,220.63,220.59,0.66]
[1758576766619,26.0,220.63,220.57,15.8679784]
[1758576766826,26.0,220.63,220.58,0.66]
[1758576767029,134.2,220.64,220.57,15.8679784]
[1758576767231,134.2,220.64,220.59,0.66]
[1758576768738,134.2,220.64,220.6,4.53309156]
[1758576770311,134.2,220.64,220.6,0.66]
[1758576771927,134.2,220.64,220.61,4.53288608]
[1758576777248,134.2,220.64,220.61,5.19288608]
[1758576777450,134.2,220.64,220.61,4.53288608]
[1758576777649,134.2,220.64,220.59,11.33301163]
[1758576777954,134.2,220.64,220.61,0.71]
[1758576778128,134.2,220.64,220.59,11.33301163]
[1758576778327,134.2,220.64,220.6,0.71]
[1758576778529,134.2,220.64,220.6,16.57582048]
[1758576778839,134.2,220.64,220.61,0.71]
[1758576779037,134.2,220.64,220.62,0.71]
[1758576779753,134.2,220.64,220.63,4.53247518]
[1758576780540,26.0,220.66,220.63,16.57366314]
[1758576780742,26.0,220.66,220.64,0.71]
[1758576781331,134.2,220.69,220.64,0.71]
[1758576781651,134.2,220.69,220.65,0.71]
[1758576781852,134.2,220.69,220.66,4.53185896]
[1758576783238,26.0,220.71,220.67,0.71]
[1758576783445,35.34,220.73,220.64,13.59559401]
[1758576783749,26.0,220.71,220.65,0.71]
[1758576783937,0.1,220.77,220.66,13.59559401]
[1758576784131,35.34,220.76,220.68,13.59559401]
[1758576784330,26.0,220.73,220.69,0.71]
[1758576784545,35.34,220.76,220.69,0.71]
[1758576784747,26.0,220.73,220.69,0.71]
[1758576785346,26.1,220.77,220.7,4.5310376]
[1758576785651,26.1,220.77,220.71,0.71]
[1758576785652,0.1,220.77,220.71,0.71]
[1758576785849,26.0,220.75,220.71,0.71]
[1758576786054,26.0,220.75,220.7,4.5310376]
[1758576786253,26.0,220.75,220.72,0.71]
[1758576786432,0.1,220.77,220.7,15.85863161]
[1758576786623,0.1,220.77,220.71,0.71]
[1758576787253,0.1,220.77,220.73,4.53042178]
[1758576787440,0.1,220.77,220.74,0.71]
[1758576787644,0.1,220.77,220.75,0.71]
[1758576788035,0.1,220.77,220.76,0.71]
[1758576789442,0.1,220.77,220.76,5.23980612]
[1758576799361,0.1,220.77,220.76,14.30559401]
[1758576799658,0.1,220.77,220.76,18.83540013]
[1758576800040,0.1,220.77,220.76,54.15540013]
[1758576802166,0.1,220.77,220.76,49.62559401]
[1758576804654,0.1,220.77,220.76,54.15540013]
[1758576804968,4.62965129,220.77,220.74,48.79964775]
[1758576805971,4.62965129,220.77,220.74,13.49964775]
[1758576806145,4.62965129,220.77,220.73,35.3]
[1758576806346,4.62965129,220.77,220.73,35.96]
[1758576806646,4.62965129,220.77,220.74,0.66]
[1758576809076,4.62965129,220.77,220.74,13.97997064]
[1758576809980,4.62965129,220.77,220.74,13.31997064]
[1758576810151,4.62965129,220.77,220.72,48.89559401]
[1758576810358,4.62965129,220.77,220.73,0.7]
[1758576810666,4.62965129,220.77,220.74,0.7]
[1758576817884,4.62965129,220.77,220.74,14.25799727]
[1758576819686,4.62965129,220.77,220.75,0.7]
[1758576819888,4.62965129,220.77,220.76,0.7]
[1758576820185,0.1,220.77,220.76,0.7]
[1758576820388,0.1,220.77,220.74,14.25799727]
[1758576820574,0.1,220.77,220.73,35.3]
[1758576820774,0.1,220.77,220.74,0.7]
[1758576820973,0.1,220.77,220.75,0.7]
[1758576825365,4.62960188,220.77,220.73,48.65457943]
[1758576825575,4.62960188,220.77,220.73,49.35457943]
[1758576826097,4.62960188,220.77,220.74,0.7]
[1758576826293,4.62960188,220.77,220.73,13.35457943]
[1758576826594,4.62960188,220.77,220.69,0.7]
[1758576826898,39.90960188,220.77,220.69,14.25970854]
[1758576827083,39.90960188,220.77,220.69,0.7]
[1758576827477,15.85503963,220.75,220.69,0.7]
[1758576827671,15.85503963,220.75,220.63,13.13984694]
[1758576827672,15.85503963,220.75,220.64,18.12774174]
[1758576827878,15.85503963,220.75,220.68,0.7]
[1758576828078,15.85503963,220.75,220.65,0.7]
[1758576828079,1.8086768,220.74,220.65,0.7]
[1758576828276,26.0,220.72,220.65,0.7]
[1758576829196,4.53083231,220.71,220.65,0.7]
[1758576829392,26.0,220.69,220.65,13.6043486]
[1758576829585,26.0,220.69,220.63,0.7]
[1758576831183,4.53144825,220.68,220.63,0.7]
[1758576831384,4.53144825,220.68,220.64,0.7]
[1758576832688,37.0886768,220.72,220.64,14.15119832]
[1758576832689,30.53082881,220.72,220.64,14.15119832]
[1758576833001,65.81082881,220.72,220.65,0.7]
[1758576834798,65.81082881,220.72,220.65,5.23197643]
[1758576834981,65.81082881,220.72,220.66,0.7]
[1758576839503,65.81082881,220.72,220.66,5.23184073]
[1758576839689,65.81082881,220.72,220.67,0.66]
[1758576840006,65.81082881,220.72,220.68,0.66]
[1758576840908,4.53043789,220.73,220.69,0.66]
[1758576841208,26.0,220.71,220.69,0.66]
[1758576842210,134.2,220.74,220.68,4.53142528]
[1758576842383,138.7302599,220.74,220.7,0.66]
[1758576844803,138.7302599,220.74,220.66,18.12745297]
[1758576845006,26.0,220.78,220.68,16.42039409]
[1758576845396,26.0,220.78,220.7,13.59559401]
[1758576845803,26.0,220.78,220.71,0.66]
[1758576846416,26.0,220.76,220.71,0.66]
[1758576847493,26.0,220.76,220.72,4.53062703]
[1758576847692,26.0,220.76,220.73,0.66]
[1758576848207,35.28,220.79,220.74,0.66]
[1758576848410,35.28,220.79,220.75,0.66]
[1758576849001,26.1,220.81,220.75,0.66]
[1758576849209,61.36,220.81,220.75,0.66]
[1758576849391,61.36,220.81,220.76,4.52980612]
[1758576849902,26.1,220.81,220.76,4.52980612]
[1758576850103,0.1,220.81,220.76,5.18980612]
[1758576850303,26.1,220.81,220.76,5.18980612]
[1758576850503,0.1,220.81,220.76,5.18980612]
[1758576854218,0.1,220.81,220.76,23.42512341]
[1758576861825,0.1,220.81,220.76,58.66512341]
[1758576869629,0.1,220.81,220.76,69.98963872]
[1758576869822,0.1,220.81,220.79,13.59559401]
[1758576870022,0.1,220.81,220.8,35.22]
[1758576870238,0.1,220.81,220.8,35.92]
[1758576870838,0.1,220.81,220.8,39.7489855]
[1758576874035,0.1,220.81,220.8,40.4489855]
[1758576874539,0.1,220.81,220.8,39.7489855]
[1758576877826,0.1,220.81,220.8,40.4489855]
[1758576878534,0.1,220.81,220.8,54.04457951]
[1758576886922,0.1,220.81,220.8,53.32457951]
[1758576887851,0.1,220.81,220.8,35.2]
[1758576889355,0.1,220.81,220.79,4.52918484]
[1758576889560,0.1,220.81,220.8,35.2]
[1758576895342,0.1,220.81,220.74,26.7]
[1758576895656,0.1,220.81,220.75,35.88]
[1758576896746,4.628844,220.81,220.75,35.88]
[1758576896956,0.1,220.81,220.76,0.7]
[1758576897346,0.1,220.81,220.77,0.67]
[1758576898997,0.1,220.81,220.76,0.67]
[1758576899681,0.1,220.81,220.75,39.71000856]
[1758576899889,0.1,220.81,220.77,0.67]
[1758576900583,4.62881857,220.81,220.75,0.67]
[1758576903905,1.80659033,220.78,220.71,5.29881857]
[1758576904086,27.80659033,220.78,220.71,0.67]
[1758576904597,1.80659033,220.8,220.72,0.67]
[1758576904897,6.33566246,220.8,220.72,5.2005043]
[1758576905099,6.33566246,220.8,220.73,0.67]
[1758576907694,6.33566246,220.8,220.73,5.20041549]
[1758576907890,6.33566246,220.8,220.73,4.53041549]
[1758576908186,6.33566246,220.8,220.73,5.20041549]
[1758576909093,6.3359936,220.78,220.73,5.20041549]
[1758576910990,1.80659033,220.78,220.71,0.67]
[1758576911203,1.80659033,220.78,220.72,0.67]
[1758576911370,6.33599294,220.78,220.72,0.67]
[1758576912198,1.80659033,220.78,220.72,0.67]
[1758576912996,1.80659033,220.78,220.73,4.53042178]
[1758576913175,1.80659033,220.79,220.74,0.67]
[1758576913381,4.52912352,220.8,220.74,0.67]
[1758576915494,4.52912352,220.8,220.74,5.20017776]
[1758576915691,4.52912352,220.8,220.74,4.53017776]
[1758576915895,4.52912352,220.8,220.75,0.7]
[1758576916098,1.80659033,220.79,220.74,4.53017776]
[1758576916398,1.80659033,220.79,220.74,0.7]
[1758576916588,1.80659033,220.75,220.7,4.5310376]
[1758576916922,1.80659033,220.75,220.7,0.7]
[1758576917579,35.16,220.77,220.71,0.7]
[1758576917785,1.80659033,220.76,220.71,5.23081195]
[1758576917987,6.33640032,220.76,220.72,0.7]
[1758576918903,1.80659033,220.76,220.72,0.7]
[1758576919498,4.52993184,220.76,220.72,0.7]
[1758576919684,6.33652217,220.76,220.69,0.7]
[1758576920201,1.80659033,220.74,220.69,0.7]
[1758576920796,6.33691758,220.74,220.69,0.7]
[1758576921500,1.80659033,220.72,220.67,0.7]
[1758576921693,1.80659033,220.72,220.68,0.7]
[1758576922007,1.80659033,220.72,220.69,0.7]
[1758576922796,4.5304795,220.73,220.69,0.7]
[1758576925203,4.5304795,220.73,220.67,0.7]
[1758576925529,27.80659033,220.72,220.67,0.7]
[1758576926080,27.80659033,220.72,220.65,0.7]
[1758576926684,62.96659033,220.72,220.65,0.7]
[1758576926885,1.80659033,220.7,220.63,5.23246931]
[1758576927092,4.53124291,220.69,220.64,0.7]
[1758576927402,4.53124291,220.69,220.65,0.72]
[1758576927611,65.6905146,220.73,220.65,0.72]
[1758576928701,65.6905146,220.73,220.66,4.53185896]
[1758576928894,65.6905146,220.73,220.67,0.72]
[1758576932610,4.53083231,220.71,220.67,0.72]
[1758576932822,11.32476191,220.76,220.67,0.72]
[1758576932823,0.1,220.87,220.83,27.21]
[1758576933008,1e-08,220.87,220.86,41.40218434]
[1758576933212,0.1,220.89,220.86,41.40218434]
[1758576933213,0.1,220.89,220.87,13.59559401]
[1758576933390,0.1,220.89,220.88,15.40218434]
[1758576933589,0.1,220.89,220.88,13.59559401]
[1758576933810,0.1,220.89,220.88,15.40218434]
[1758576934105,0.1,220.89,220.88,15.40961183]
[1758576934308,0.1,220.89,220.88,17.21620216]
[1758576934612,0.1,220.92,220.89,13.59559401]
[1758576934794,0.1,220.92,220.89,18.12273421]
[1758576935004,0.1,220.92,220.89,20.97158928]
[1758576936595,0.1,220.92,220.89,20.96864687]
[1758576937615,0.1,220.92,220.9,2.84591266]
[1758576938515,0.1,220.92,220.9,7.37268645]
[1758576938708,0.1,220.92,220.91,1.81393556]
[1758576942121,0.8,220.92,220.91,1.81393556]
[1758576943115,0.1,220.93,220.91,1.81393556]
[1758576944224,0.1,220.93,220.91,6.34064236]
[1758576945322,2.50659033,220.96,220.91,5.2467068]
[1758576945505,0.7,220.95,220.91,5.2467068]
[1758576945705,1.80659033,220.96,220.92,2.53393556]
[1758576946129,2.50659033,220.96,220.92,2.53393556]
[1758576946639,2.50659033,220.96,220.93,4.52632055]
[1758576947011,1.80659033,220.96,220.93,5.24632055]
[1758576947208,0.7,220.98,220.93,18.84191456]
[1758576947426,41.60491551,221.0,220.93,18.84191456]
[1758576947427,2.50659033,220.97,220.93,18.84191456]
[1758576947723,2.50659033,220.97,220.93,5.24632055]
[1758576947914,2.50659033,220.97,220.94,13.60204937]
[1758576948604,0.1,221.0,220.95,5.24591083]
[1758576948802,0.7,220.99,220.95,32.26975412]
[1758576949022,0.7,220.99,220.95,18.12150484]
[1758576949215,0.1,221.0,220.96,0.72]
[1758576949526,0.7,220.99,220.96,1.81344214]
[1758576949827,2.50659033,220.99,220.96,1.81344214]
[1758576950827,2.50659033,220.99,220.96,6.33903655]
[1758576952020,1.80659033,220.99,220.96,6.33903655]
[1758576952407,1.80659033,220.99,220.96,7.05903655]
[1758576952907,1.80659033,220.99,220.96,6.33903655]
[1758576953102,1.80659033,220.99,220.96,7.05903655]
[1758576954832,0.1,221.0,220.96,7.05903655]
[1758576955139,0.1,221.0,220.97,0.72]
[1758576955439,0.1,221.0,220.98,0.72]
[1758576955611,0.1,221.0,220.96,6.33903655]
[1758576955811,0.1,221.0,220.97,0.72]
[1758576956011,0.1,221.0,220.98,1.81344214]
[1758576956722,0.1,221.0,220.98,6.33870444]
[1758576957629,0.81,221.0,220.98,6.33870444]
[1758576958532,0.1,221.0,220.98,6.33870444]
[1758576959311,0.1,221.0,220.98,7.01870444]
[1758576959510,0.1,221.0,220.98,4.5252623]
[1758576959721,0.1,221.0,220.99,1.81335993]
[1758576960918,0.1,221.0,220.99,6.33845156]
[1758576962034,0.1,221.0,220.99,4.52509163]
[1758576967934,36.72,221.05,220.99,4.52509163]
[1758576968137,0.71,221.03,220.99,4.52509163]
[1758576968434,0.71,221.02,220.99,7.34252582]
[1758576969467,0.71,221.01,220.99,7.34252582]
[1758576970447,0.71,221.01,220.99,2.81743419]
[1758576970448,0.71,221.0,220.99,2.81743419]
[1758576970649,0.71,221.0,220.89,0.68]
[1758576970832,2.81743419,220.97,220.9,2.82945418]
[1758576971151,0.71,220.96,220.91,2.82945418]
[1758576971433,0.71,220.95,220.91,13.51086795]
[1758576971636,0.71,220.94,220.89,5.20696574]
[1758576972542,0.71,220.94,220.89,4.52696574]
[1758576972718,0.71,220.96,220.9,0.68]
[1758576972914,4.52539724,220.98,220.9,0.68]
[1758576973137,0.71,221.02,220.93,13.59559401]
[1758576973358,0.71,221.01,220.94,0.68]
[1758576973783,0.71,221.01,220.95,4.52591083]
[1758576974056,0.71,221.0,220.95,4.52591083]
[1758576974278,0.71,221.0,220.95,5.20591083]
[1758576977535,0.71,221.0,220.94,4.52611568]
[1758576977736,0.71,221.0,220.96,0.7]
[1758576977948,2.81743419,221.02,220.96,0.7]
[1758576978564,3.52743419,221.02,220.96,0.7]
[1758576979660,4.52382525,221.06,220.97,4.52550119]
[1758576979856,3.52743419,221.04,220.98,0.7]
[1758576981064,3.52743419,221.04,220.99,4.52509163]
[1758576981246,0.71,221.03,220.99,4.52509163]
[1758576981445,0.71,221.02,220.99,4.52509163]
[1758576984568,0.71,221.04,220.99,5.22509163]
[1758576984862,0.71,221.03,220.99,5.22509163]
[1758576987645,0.71,221.03,220.99,0.7]
[1758576987846,39.41743419,221.05,220.99,0.7]
[1758576988046,36.6,221.05,220.99,0.7]
[1758576988248,0.67,221.1,221.0,66.80559401]
[1758576988465,0.67,221.1,221.02,13.59559401]
[1758576988765,0.67,221.1,221.03,0.7]
[1758576989348,0.1,221.15,221.03,0.7]
[1758576989541,0.67,221.12,221.03,0.7]
[1758576989745,0.67,221.12,221.05,13.59559401]
[1758576990075,0.67,221.12,221.06,0.7]
[1758576991282,5.19247465,221.12,221.06,0.7]
[1758576991582,0.67,221.12,221.06,0.7]
[1758576992086,5.19244463,221.12,221.06,0.7]
[1758576992253,5.19244463,221.12,221.06,5.22364709]
[1758576992576,0.67,221.11,221.06,5.22364709]
[1758576993271,0.67,221.1,221.05,13.59559401]
[1758576993471,0.67,221.09,221.05,18.11945681]
[1758576993667,0.67,221.09,221.05,18.81945681]
[1758576993973,5.19265088,221.11,221.05,18.81945681]
[1758576994174,4.52265088,221.11,221.05,18.81945681]
[1758576994382,0.67,221.1,221.05,18.81945681]
[1758576994877,0.67,221.09,221.05,18.81945681]
[1758576995469,5.19265088,221.11,221.06,0.7]
[1758576995750,0.67,221.1,221.06,0.7]
[1758576995971,0.67,221.1,221.05,13.59559401]
[1758576996273,0.67,221.1,221.01,27.21]
[1758576996274,2.81743419,221.07,220.99,0.7]
[1758576996572,0.67,221.07,221.0,40.29559401]
[1758576996871,0.67,221.07,221.01,0.7]
[1758576997875,5.19346956,221.07,221.01,5.22462139]
[1758576998072,4.52346956,221.07,221.01,0.7]
[1758576998375,0.67,221.06,221.01,0.7]
[1758576998678,0.67,221.05,221.01,0.7]
[1758576999354,0.67,221.05,221.0,13.59559401]
[1758576999355,0.67,221.05,221.0,18.12047789]
[1758576999565,0.67,221.04,220.98,0.7]
[1758577000464,0.67,221.04,220.97,5.22541905]
[1758577000677,5.19436938,221.03,220.97,5.22541905]
[1758577000990,0.67,221.02,220.97,13.59559401]
[1758577001270,0.67,221.01,220.97,13.59559401]
[1758577001476,0.67,221.0,220.97,13.59559401]
[1758577001656,4.52436938,221.03,220.97,13.59559401]
[1758577001978,5.19436938,221.03,220.96,0.7]
[1758577002864,5.19436938,221.03,220.96,5.22567283]
[1758577003261,0.67,221.02,220.96,5.22567283]
[1758577005878,0.67,221.02,220.97,0.7]
[1758577006859,0.67,221.02,220.97,5.22547231]
[1758577007170,0.67,221.01,220.95,18.82133173]
[1758577007571,0.67,221.01,220.96,0.7]
[1758577007772,0.67,221.01,220.97,0.7]
[1758577008480,4.52472811,221.01,220.95,18.12133173]
[1758577008673,5.19472811,221.01,220.95,18.82133173]
[1758577009476,5.19472811,221.01,220.96,0.7]
[1758577011192,0.67,221.0,220.95,13.59559401]
[1758577011371,15.83423814,221.04,220.94,0.7]
[1758577011372,0.67,220.99,220.94,0.7]
[1758577011692,0.67,220.98,220.94,0.7]
[1758577012280,0.67,220.97,220.92,18.82210741]
[1758577012480,0.67,220.97,220.93,0.7]
[1758577013275,5.19552745,220.97,220.91,13.82764676]
[1758577013485,0.67,220.96,220.9,0.7]
[1758577014694,5.19578704,220.96,220.9,5.22690965]
[1758577015983,5.19578704,220.96,220.9,19.15429433]
[1758577016572,0.67,220.98,220.91,14.29559401]
[1758577016805,0.67,220.98,220.92,0.7]
[1758577017781,0.67,220.98,220.92,5.22636122]
[1758577017976,0.67,220.98,220.93,0.72]
[1758577018797,0.67,220.98,220.94,0.72]
[1758577019397,0.67,220.98,220.94,5.24599539]
[1758577019693,0.67,221.01,220.95,0.72]
[1758577020684,0.67,221.01,220.96,4.52570601]
[1758577020899,0.67,221.0,220.96,5.24570601]
[1758577022298,0.67,221.0,220.95,0.72]
[1758577024201,0.67,221.0,220.95,5.24583334]
[1758577024588,0.67,220.99,220.95,0.72]
[1758577024792,0.67,220.99,220.92,0.72]
[1758577025004,2.47339711,220.99,220.92,0.72]
[1758577026995,4.5252964,220.98,220.92,5.24644285]
[1758577027188,0.67,220.97,220.92,5.24644285]
[1758577027395,0.67,220.96,220.92,5.24644285]
[1758577028705,5.1952964,220.98,220.93,0.72]
[1758577029522,4.5252964,220.98,220.93,0.72]
[1758577029690,5.1952964,220.98,220.93,5.24626725]
[1758577030202,4.5252964,220.98,220.93,5.24626725]
[1758577030503,5.1952964,220.98,220.94,0.72]
[1758577030809,0.67,220.97,220.91,13.59559401]
[1758577031007,4.5252964,220.98,220.92,0.72]
[1758577031310,5.1952964,220.98,220.92,0.72]
[1758577032604,0.67,220.98,220.92,0.72]
[1758577032912,0.67,220.98,220.92,5.24637263]
[1758577034904,0.67,220.98,220.93,0.72]
[1758577035103,0.67,220.98,220.92,4.52637263]
[1758577035299,0.67,220.97,220.92,4.52637263]
[1758577035504,0.67,220.97,220.93,0.72]
[1758577035706,0.67,220.97,220.92,4.52637263]
[1758577035901,0.67,220.97,220.93,0.72]
[1758577036609,134.2,221.07,220.96,13.59559401]
[1758577036610,37.72339711,221.06,220.96,13.59559401]
[1758577036808,0.67,221.0,220.96,13.59559401]
[1758577036995,0.67,221.03,220.97,0.72]
[1758577037885,0.67,221.03,220.98,4.5252964]
[1758577038105,0.67,221.03,220.98,5.1952964]
[1758577038303,0.67,221.03,220.99,0.67]
[1758577039814,0.67,221.03,220.99,5.19491841]
[1758577040110,0.17,221.03,220.99,5.19491841]
[1758577040314,1.80339711,221.04,221.0,0.67]
[1758577040504,22.60855523,221.16,221.01,0.67]
[1758577040811,1.80339711,221.11,221.01,0.67]
[1758577041003,1.80339711,221.11,221.02,13.59559401]
[1758577041202,1.80339711,221.11,221.03,0.67]
[1758577041405,30.52202224,221.14,221.04,13.59559401]
[1758577041603,1.80339711,221.11,221.05,0.67]
[1758577041913,1.80339711,221.11,221.06,4.52365873]
[1758577042119,0.71,221.1,221.06,5.19365873]
[1758577042297,2.51339711,221.11,221.07,0.67]
[1758577042710,1.80339711,221.11,221.06,4.52365873]
[1758577043018,0.71,221.1,221.06,0.67]
[1758577044010,0.71,221.1,221.06,5.19354531]
[1758577044600,0.71,221.09,221.06,4.52354531]
[1758577044813,0.71,221.11,221.06,0.67]
[1758577045416,0.71,221.1,221.06,0.67]
[1758577045820,0.71,221.09,221.02,14.26559401]
[1758577045997,0.71,221.08,221.03,0.67]
[1758577046197,0.71,221.07,221.03,0.67]
[1758577048597,0.71,221.07,221.03,5.19420153]
[1758577048919,0.71,221.07,221.03,4.52420153]
[1758577049110,0.69,221.06,221.01,4.524485]
[1758577049317,0.69,221.05,221.0,0.68]
[1758577049516,0.69,221.05,220.99,15.39899112]
[1758577049709,0.69,221.05,221.01,0.68]
[1758577051316,0.69,221.05,221.0,4.52488687]
[1758577051507,0.69,221.05,221.01,0.68]
[1758577053123,5.21388837,221.05,221.01,0.68]
[1758577053629,0.69,221.05,221.01,0.68]
[1758577054006,0.69,221.04,221.01,0.68]
[1758577054721,0.69,221.04,220.99,0.68]
[1758577054916,0.69,221.04,220.98,4.5252964]
[1758577055124,5.21369638,221.06,221.0,0.68]
[1758577055528,0.69,221.06,221.0,0.68]
[1758577055918,5.21366581,221.06,221.0,0.68]
[1758577056924,5.21366581,221.06,221.0,5.2047767]
[1758577058104,0.69,221.05,221.0,5.2047767]
[1758577058433,0.69,221.05,221.01,0.68]
[1758577059426,0.69,221.07,221.02,0.68]
[1758577059613,36.45,221.07,221.03,0.68]
[1758577059934,0.69,221.07,221.03,0.68]
[1758577060430,0.69,221.07,221.03,5.20420273]
[1758577060623,66.28284071,221.1,221.03,5.20420273]
[1758577060624,36.45,221.09,221.04,0.68]
[1758577061133,0.69,221.08,221.04,0.68]
[1758577061644,66.28286,221.1,221.05,0.68]
[1758577061942,0.69,221.08,221.04,0.68]
[1758577062442,0.69,221.08,221.04,5.20394643]
[1758577062742,66.28286,221.1,221.04,4.52394643]
[1758577063042,0.69,221.09,221.04,4.52394643]
[1758577063222,0.69,221.08,221.04,5.20394643]
[1758577065734,0.69,221.08,221.05,0.68]
[1758577066534,66.97286,221.1,221.05,0.68]
[1758577066720,0.69,221.09,221.05,0.68]